fUST/lending_fUST_20250729
["ID","MTS","AMOUNT","RATE_DAILY","PERIOD"]
[375963866,1753801847923,-744.81,0.0001914,2]
[375963868,1753801847932,-460.0,0.0001914,2]
[375963870,1753801847941,-460.0,0.0001914,2]
[375963872,1753801847951,-460.0,0.0001914,2]
[375963874,1753801847960,-460.0,0.0001914,2]
[375963876,1753801847970,-460.0,0.0001914,2]
[375963878,1753801847979,-460.0,0.0001914,2]
[375963880,1753801847989,-466.09411442,0.0001914,2]
[375963882,1753801847999,-460.0,0.0001914,2]
[375963885,1753801848009,-460.0,0.0001914,2]
[375963887,1753801848018,-460.0,0.0001914,2]
[375963888,1753801848028,-205.72273761,0.0001914,2]
[375963890,1753801848039,-460.0,0.0001914,2]
[375963892,1753801848049,-460.0,0.0001914,2]
[375963894,1753801848059,-460.0,0.0001914,2]
[375963897,1753801848069,-3021.87,0.0001914,2]
[375963899,1753801848078,-460.0,0.0001914,2]
[375963901,1753801848088,-460.0,0.0001914,2]
[375963903,1753801848098,-460.0,0.0001914,2]
[375963905,1753801848107,-460.0,0.0001914,2]
[375963906,1753801848117,-460.0,0.0001914,2]
[375963908,1753801848127,-460.0,0.0001914,2]
[375963911,1753801848136,-460.0,0.0001914,2]
[375963912,1753801848146,-460.0,0.0001914,2]
[375963914,1753801848155,-151.0,0.0001914,2]
[375963916,1753801848165,-460.0,0.0001914,2]
[375963918,1753801848175,-460.0,0.0001914,2]
[375963920,1753801848184,-460.0,0.0001914,2]
[375963922,1753801848195,-460.0,0.0001914,2]
[375963924,1753801848204,-460.0,0.0001914,2]
[375963926,1753801848215,-460.0,0.0001914,2]
[375963928,1753801848225,-460.0,0.0001914,2]
[375963930,1753801848234,-463.29544087,0.0001914,2]
[375963932,1753801848244,-460.0,0.0001914,2]
[375963934,1753801848254,-460.0,0.0001914,2]
[375963937,1753801848263,-548.028466,0.0001914,2]
[375963938,1753801848273,-460.0,0.0001914,2]
[375963940,1753801848284,-460.0,0.0001914,2]
[375963943,1753801848293,-548.028466,0.0001914,2]
[375963944,1753801848303,-1061.68,0.0001914,2]
[375963946,1753801848313,-460.0,0.0001914,2]
[375963948,1753801848323,-814.85,0.0001914,2]
[375963951,1753801848332,-485.45,0.0001914,2]
[375963952,1753801848342,-553.90135081,0.0001914,2]
[375963954,1753801848352,-151.0,0.0001914,2]
[375963956,1753801848363,-460.0,0.0001914,2]
[375963958,1753801848372,-460.0,0.0001914,2]
[375963960,1753801848384,-460.0,0.0001914,2]
[375963962,1753801848395,-520.65,0.0001914,2]
[375963964,1753801848405,-460.0,0.0001914,2]
[375963966,1753801848415,-460.0,0.0001914,2]
[375963968,1753801848426,-460.0,0.0001914,2]
[375963970,1753801848436,-2741.32,0.0001914,2]
[375963972,1753801848446,-460.0,0.0001914,2]
[375963973,1753801848455,-460.0,0.0001914,2]
[375963974,1753801848466,-460.0,0.0001914,2]
[375963975,1753801848475,-460.0,0.0001914,2]
[375963976,1753801848486,-460.0,0.0001914,2]
[375963977,1753801848496,-565.43,0.0001914,2]
[375963978,1753801848505,-461.61286797,0.0001914,2]
[375963979,1753801848515,-460.0,0.0001914,2]
[375963980,1753801848525,-1231.38,0.0001914,2]
[375963981,1753801848537,-460.0,0.0001914,2]
[375963982,1753801848547,-460.0,0.0001914,2]
[375963983,1753801848556,-1909.24,0.0001914,2]
[375963984,1753801848566,-577.48,0.0001914,2]
[375963985,1753801848576,-460.0,0.0001914,2]
[375963986,1753801848588,-460.0,0.0001914,2]
[375963987,1753801848598,-460.0,0.0001914,2]
[375963988,1753801848608,-461.79010418,0.0001914,2]
[375963989,1753801848618,-3553.32,0.0001914,2]
[375963990,1753801848628,-401.89177496,0.0001914,2]
[375963991,1753801848637,-307.70972553,0.0001914,2]
[375963992,1753801848647,-460.0,0.0001914,2]
[375963993,1753801848656,-654.31,0.0001914,2]
[375963994,1753801848666,-460.0,0.0001914,2]
[375963995,1753801848676,-460.0,0.0001914,2]
[375963996,1753801848685,-460.0,0.0001914,2]
[375963997,1753801848695,-977.06,0.0001914,2]
[375963998,1753801848704,-460.0,0.0001914,2]
[375963999,1753801848713,-473.8932571,0.0001914,2]
[375964000,1753801848723,-460.0,0.0001914,2]
[375964001,1753801848732,-2428.42,0.0001914,2]
[375964002,1753801848742,-464.86997175,0.0001914,2]
[375964003,1753801848752,-460.0,0.0001914,2]
[375964004,1753801848762,-460.0,0.0001914,2]
[375964005,1753801848772,-460.0,0.0001914,2]
[375964006,1753801848784,-767.52,0.0001914,2]
[375964007,1753801848794,-1052.62,0.0001914,2]
[375964008,1753801848803,-460.0,0.0001914,2]
[375964009,1753801848813,-881.66,0.0001914,2]
[375964010,1753801848823,-460.0,0.0001914,2]
[375964011,1753801848834,-460.0,0.0001914,2]
[375964012,1753801848844,-460.0,0.0001914,2]
[375964013,1753801848854,-460.0,0.0001914,2]
[375964014,1753801848864,-460.0,0.0001914,2]
[375964015,1753801848873,-819.8,0.0001914,2]
[375964016,1753801848883,-705.57,0.0001914,2]
[375964017,1753801848893,-7947.48,0.0001914,2]
[375964018,1753801848903,-460.0,0.0001914,2]
[375964019,1753801848913,-460.0,0.0001914,2]
[375964020,1753801848922,-460.0,0.0001914,2]
[375964021,1753801848932,-460.0,0.0001914,2]
[375964022,1753801848942,-460.0,0.0001914,2]
[375964023,1753801848951,-715.32,0.0001914,2]
[375964024,1753801848961,-500.0,0.0001914,2]
[375964025,1753801848970,-541.38,0.0001914,2]
[375964026,1753801848980,-460.0,0.0001914,2]
[375964027,1753801848989,-460.0,0.0001914,2]
[375964029,1753801848999,-151.0,0.0001914,2]
[375964031,1753801849008,-2027.5,0.0001914,2]
[375964033,1753801849018,-2995.42,0.0001914,2]
[375964035,1753801849030,-151.0,0.0001914,2]
[375964037,1753801849040,-1657.37,0.0001914,2]
[375964039,1753801849053,-872.15,0.0001914,2]
[375964041,1753801849063,-460.0,0.0001914,2]
[375964043,1753801849072,-460.0,0.0001914,2]
[375964045,1753801849082,-2995.59,0.0001914,2]
[375964047,1753801849092,-460.0,0.0001914,2]
[375964048,1753801849102,-551.01,0.0001914,2]
[375964050,1753801849111,-460.0,0.0001914,2]
[375964052,1753801849120,-2165.41,0.0001914,2]
[375964054,1753801849130,-460.0,0.0001914,2]
[375964056,1753801849140,-747.4,0.0001914,2]
[375964058,1753801849149,-500.0,0.00019141,2]
[375964060,1753801849159,-500.0,0.00019141,2]
[375964067,1753801849301,-460.0,0.00019142,2]
[375964068,1753801849312,-151.0,0.00019142,2]
[375964069,1753801849322,-245.520073,0.00019145,2]
[375964070,1753801849332,-245.520073,0.00019145,2]
[375964071,1753801849341,-525.0,0.00019145,2]
[375964072,1753801849350,-1000.0,0.0001915,2]
[375964073,1753801849360,-1000.0,0.0001915,2]
[375964074,1753801849369,-1000.0,0.0001915,2]
[375964075,1753801849379,-1000.0,0.0001915,2]
[375964076,1753801849391,-1000.0,0.0001915,2]
[375964077,1753801849401,-1000.0,0.0001915,2]
[375964078,1753801849411,-1000.0,0.0001915,2]
[375964079,1753801849421,-1000.0,0.0001915,2]
[375964080,1753801849432,-1000.0,0.0001915,2]
[375964081,1753801849441,-1000.0,0.0001915,2]
[375964082,1753801849451,-1063.75587408,0.0001915,2]
[375964083,1753801849460,-151.0,0.0001915,2]
[375964084,1753801849470,-151.0,0.0001915,2]
[375964085,1753801849480,-500.0,0.00019173,2]
[375964086,1753801849490,-500.69756271,0.00019173,2]
[375964087,1753801849500,-500.0,0.00019173,2]
[375964088,1753801849512,-500.0,0.00019173,2]
[375964089,1753801849521,-500.0,0.00019173,2]
[375964090,1753801849532,-263.13610505,0.00019173,2]
[375964091,1753801849541,-500.0,0.00019173,2]
[375964092,1753801849550,-500.0,0.00019173,2]
[375964093,1753801849560,-500.0,0.00019173,2]
[375964094,1753801849570,-500.0,0.00019173,2]
[375964095,1753801849579,-500.0,0.00019173,2]
[375964096,1753801849589,-502.55260872,0.00019173,2]
[375964097,1753801849598,-500.0,0.00019173,2]
[375964098,1753801849607,-501.25117299,0.00019173,2]
[375964099,1753801849616,-500.0,0.00019173,2]
[375964100,1753801849625,-500.0,0.00019173,2]
[375964101,1753801849635,-595.956,0.00019173,2]
[375964102,1753801849644,-151.0,0.00019178,2]
[375964103,1753801849653,-151.0,0.00019178,2]
[375964104,1753801849663,-5000.0,0.00019178,2]
[375964105,1753801849673,-5000.0,0.00019178,2]
[375964106,1753801849683,-3957.89146604,0.00019178,2]
[375964107,1753801849693,-666.0,0.00019178,2]
[375964108,1753801849702,-4025.8235788,0.00019178,2]
[375964109,1753801849711,-536.121451,0.00019178,2]
[375964110,1753801849721,-525.0,0.00019191,2]
[375964111,1753801849730,-257.1030486,0.00019233,2]
[375964112,1753801849740,-525.0,0.00019243,2]
[375964113,1753801849749,-1833.60362468,0.00019245,2]
[375964114,1753801849759,-5000.0,0.00019271,2]
[375964115,1753801849768,-392.124336,0.00019301,2]
[375964116,1753801849778,-151.968557,0.00019328,2]
[375964117,1753801849790,-766.358304,0.00019328,2]
[375964118,1753801849799,-766.358304,0.00019328,2]
[375964119,1753801849809,-151.0,0.00019328,2]
[375964120,1753801849819,-151.0,0.00019328,2]
[375964121,1753801849828,-766.358304,0.00019329,2]
[375964122,1753801849838,-766.358304,0.00019329,2]
[375964123,1753801849847,-151.0,0.00019329,2]
[375964124,1753801849857,-174.60959,0.00019329,2]
[375964125,1753801849866,-151.0,0.00019329,2]
[375964126,1753801849877,-182.166354,0.00019329,2]
[375964127,1753801849886,-182.166354,0.00019329,2]
[375964128,1753801849895,-182.166354,0.00019329,2]
[375964129,1753801849904,-182.166354,0.00019329,2]
[375964130,1753801849914,-245.520073,0.00019329,2]
[375964131,1753801849923,-245.520073,0.00019329,2]
[375964132,1753801849933,-151.0,0.00019329,2]
[375964133,1753801849942,-151.0,0.00019329,2]
[375964134,1753801849952,-295.05710382,0.00019329,2]
[375964135,1753801849961,-151.0,0.00019329,2]
[375964136,1753801849971,-160.0,0.00019329,2]
[375964137,1753801849980,-161.11205778,0.00019329,2]
[375964138,1753801849990,-30582.26030167,0.00019329,2]
[375964139,1753801849999,-525.0,0.00019356,2]
[375964140,1753801850008,-1507.35794113,0.00019359,2]
[375964141,1753801850018,-548.028466,0.00019373,2]
[375964142,1753801850028,-548.028466,0.00019373,2]
[375964143,1753801850039,-460.0,0.0001938,2]
[375964144,1753801850048,-430.1392862,0.00019397,2]
[375964145,1753801850057,-430.1392862,0.00019397,2]
[375964146,1753801850067,-430.1392862,0.00019397,2]
[375964147,1753801850077,-525.0,0.00019404,2]
[375964148,1753801850087,-465.1891006,0.00019411,2]
[375964149,1753801850098,-341.15063545,0.00019411,2]
[375964150,1753801850107,-176.18213583,0.00019411,2]
[375964151,1753801850116,-460.0,0.00019411,2]
[375964152,1753801850125,-460.0,0.00019411,2]
[375964153,1753801850134,-460.0,0.00019411,2]
[375964154,1753801850143,-561.95,0.00019411,2]
[375964155,1753801850152,-633.37,0.00019411,2]
[375964156,1753801850161,-2694.22,0.00019411,2]
[375964157,1753801850171,-460.0,0.00019412,2]
[375964158,1753801850180,-460.0,0.00019412,2]
[375964159,1753801850189,-460.0,0.00019412,2]
[375964160,1753801850198,-460.0,0.00019412,2]
[375964161,1753801850207,-460.0,0.00019412,2]
[375964162,1753801850216,-460.0,0.00019412,2]
[375964163,1753801850225,-460.0,0.00019412,2]
[375964164,1753801850235,-460.0,0.00019412,2]
[375964165,1753801850244,-3991.18,0.00019412,2]
[375964166,1753801850254,-713.0,0.00019412,2]
[375964167,1753801850263,-460.0,0.00019412,2]
[375964168,1753801850272,-460.0,0.00019412,2]
[375964169,1753801850283,-3231.06,0.00019412,2]
[375964170,1753801850293,-460.0,0.00019412,2]
[375964171,1753801850302,-460.0,0.00019412,2]
[375964172,1753801850311,-460.0,0.00019412,2]
[375964173,1753801850320,-2167.94,0.00019412,2]
[375964174,1753801850330,-460.0,0.00019413,2]
[375964175,1753801850340,-460.0,0.00019413,2]
[375964176,1753801850350,-460.0,0.00019413,2]
[375964177,1753801850359,-460.0,0.00019413,2]
[375964178,1753801850369,-462.29169089,0.00019413,2]
[375964179,1753801850379,-460.0,0.00019413,2]
[375964180,1753801850392,-460.0,0.00019413,2]
[375964181,1753801850402,-460.0,0.00019413,2]
[375964182,1753801850411,-460.0,0.00019413,2]
[375964183,1753801850423,-460.0,0.00019413,2]
[375964184,1753801850436,-460.0,0.00019413,2]
[375964185,1753801850446,-348.04728157,0.00019413,2]
[375964186,1753801850456,-532.83,0.00019413,2]
[375964187,1753801850466,-460.0,0.00019413,2]
[375964188,1753801850476,-460.0,0.00019413,2]
[375964190,1753801850485,-460.0,0.00019413,2]
[375964192,1753801850495,-460.0,0.00019413,2]
[375964193,1753801850504,-460.0,0.00019413,2]
[375964194,1753801850514,-460.0,0.00019413,2]
[375964195,1753801850523,-460.0,0.00019413,2]
[375964196,1753801850534,-460.0,0.00019413,2]
[375964197,1753801850544,-460.0,0.00019413,2]
[375964198,1753801850554,-460.0,0.00019413,2]
[375964199,1753801850564,-460.0,0.00019413,2]
[375964200,1753801850574,-460.0,0.00019413,2]
[375964201,1753801850583,-460.0,0.00019413,2]
[375964202,1753801850593,-460.0,0.00019413,2]
[375964203,1753801850603,-460.0,0.00019413,2]
[375964205,1753801850613,-460.0,0.00019413,2]
[375964207,1753801850622,-460.0,0.00019413,2]
[375964209,1753801850632,-460.0,0.00019413,2]
[375964211,1753801850641,-301.82434676,0.00019413,2]
[375964213,1753801850651,-460.0,0.00019413,2]
[375964215,1753801850660,-460.0,0.00019413,2]
[375964217,1753801850669,-460.0,0.00019413,2]
[375964219,1753801850678,-463.72357155,0.00019413,2]
[375964221,1753801850688,-460.0,0.00019413,2]
[375964222,1753801850697,-801.96,0.00019413,2]
[375964224,1753801850706,-460.0,0.00019413,2]
[375964226,1753801850715,-460.0,0.00019413,2]
[375964228,1753801850724,-460.0,0.00019413,2]
[375964230,1753801850733,-460.0,0.00019413,2]
[375964232,1753801850743,-460.0,0.00019413,2]
[375964234,1753801850752,-460.0,0.00019413,2]
[375964236,1753801850762,-460.0,0.00019413,2]
[375964238,1753801850772,-460.0,0.00019413,2]
[375964240,1753801850785,-654.78,0.00019413,2]
[375964242,1753801850794,-1116.08,0.00019413,2]
[375964244,1753801850804,-460.0,0.00019413,2]
[375964246,1753801850815,-493.64,0.00019413,2]
[375964248,1753801850824,-460.0,0.00019413,2]
[375964250,1753801850834,-460.0,0.00019413,2]
[375964252,1753801850844,-460.0,0.00019413,2]
[375964254,1753801850854,-460.0,0.00019413,2]
[375964256,1753801850863,-460.0,0.00019413,2]
[375964258,1753801850872,-460.0,0.00019413,2]
[375964260,1753801850882,-460.0,0.00019413,2]
[375964262,1753801850891,-460.0,0.00019413,2]
[375964264,1753801850901,-707.97,0.00019413,2]
[375964266,1753801850910,-460.0,0.00019413,2]
[375964268,1753801850919,-460.0,0.00019413,2]
[375964270,1753801850929,-460.0,0.00019413,2]
[375964272,1753801850938,-769.2,0.00019413,2]
[375964274,1753801850948,-460.0,0.00019413,2]
[375964276,1753801850957,-628.38,0.00019413,2]
[375964278,1753801850966,-529.68,0.00019413,2]
[375964280,1753801850976,-1410.75,0.00019413,2]
[375964282,1753801850984,-713.27,0.00019413,2]
[375964284,1753801850994,-460.0,0.00019413,2]
[375964286,1753801851003,-460.0,0.00019413,2]
[375964288,1753801851012,-460.0,0.00019413,2]
[375964290,1753801851022,-460.0,0.00019413,2]
[375964292,1753801851033,-151.0,0.00019413,2]
[375964294,1753801851042,-460.0,0.00019413,2]
[375964296,1753801851052,-460.0,0.00019413,2]
[375964298,1753801851061,-460.0,0.00019413,2]
[375964300,1753801851071,-460.0,0.00019413,2]
[375964302,1753801851080,-460.0,0.00019413,2]
[375964304,1753801851090,-460.0,0.00019413,2]
[375964306,1753801851099,-460.0,0.00019413,2]
[375964308,1753801851108,-200.0,0.00019413,2]
[375964310,1753801851118,-500.0,0.00019414,2]
[375964312,1753801851127,-151.674928,0.00019414,2]
[375964314,1753801851136,-256.81509,0.00019414,2]
[375964316,1753801851146,-369.078666,0.00019414,2]
[375964318,1753801851156,-369.078666,0.00019414,2]
[375964320,1753801851165,-152.497948,0.00019414,2]
[375964322,1753801851174,-354.077728,0.00019414,2]
[375964324,1753801851184,-354.077728,0.00019414,2]
[375964326,1753801851193,-265.046953,0.00019414,2]
[375964328,1753801851202,-265.046953,0.00019414,2]
[375964330,1753801851211,-2562.35,0.00019414,2]
[375964332,1753801851221,-215.14403475,0.00019414,2]
[375964334,1753801851231,-460.0,0.00019414,2]
[375964336,1753801851240,-151.0,0.00019414,2]
[375964338,1753801851250,-151.0,0.00019414,2]
[375964340,1753801851259,-460.0,0.00019414,2]
[375964342,1753801851269,-460.0,0.00019414,2]
[375964344,1753801851278,-460.0,0.00019414,2]
[375964346,1753801851290,-520.55390597,0.00019414,2]
[375964348,1753801851300,-766.358304,0.00019414,2]
[375964350,1753801851309,-766.358304,0.00019414,2]
[375964352,1753801851319,-460.0,0.00019414,2]
[375964354,1753801851329,-460.0,0.00019414,2]
[375964356,1753801851338,-460.0,0.00019414,2]
[375964358,1753801851348,-274.05676829,0.00019414,2]
[375964360,1753801851358,-151.0,0.00019414,2]
[375964363,1753801851368,-460.0,0.00019414,2]
[375964365,1753801851378,-151.0,0.00019414,2]
[375964366,1753801851390,-182.166354,0.00019414,2]
[375964368,1753801851400,-182.166354,0.00019414,2]
[375964370,1753801851409,-460.0,0.00019414,2]
[375964373,1753801851418,-245.520073,0.00019414,2]
[375964375,1753801851429,-245.520073,0.00019414,2]
[375964377,1753801851438,-460.0,0.00019414,2]
[375964379,1753801851448,-465.25254522,0.00019414,2]
[375964381,1753801851458,-151.234386,0.00019414,2]
[375964383,1753801851468,-460.0,0.00019414,2]
[375964385,1753801851479,-505.38852183,0.00019414,2]
[375964387,1753801851488,-151.0,0.00019414,2]
[375964389,1753801851497,-151.713914,0.00019414,2]
[375964391,1753801851506,-460.0,0.00019414,2]
[375964392,1753801851516,-460.0,0.00019414,2]
[375964393,1753801851526,-677.934949,0.00019414,2]
[375964394,1753801851536,-677.934949,0.00019414,2]
[375964397,1753801851546,-460.0,0.00019414,2]
[375964398,1753801851556,-460.0,0.00019414,2]
[375964399,1753801851565,-460.0,0.00019414,2]
[375964401,1753801851575,-423.76192844,0.00019414,2]
[375964403,1753801851584,-460.0,0.00019414,2]
[375964404,1753801851593,-5752.38,0.00019414,2]
[375964405,1753801851602,-855.67,0.00019414,2]
[375964407,1753801851611,-799.06,0.00019414,2]
[375964408,1753801851620,-460.0,0.00019414,2]
[375964409,1753801851630,-460.0,0.00019414,2]
[375964410,1753801851639,-460.0,0.00019414,2]
[375964411,1753801851649,-460.0,0.00019414,2]
[375964412,1753801851659,-460.0,0.00019414,2]
[375964413,1753801851669,-460.0,0.00019414,2]
[375964414,1753801851679,-460.0,0.00019414,2]
[375964415,1753801851689,-460.0,0.00019414,2]
[375964416,1753801851698,-744.81,0.00019414,2]
[375964417,1753801851708,-460.0,0.00019414,2]
[375964418,1753801851718,-460.0,0.00019414,2]
[375964419,1753801851728,-460.0,0.00019414,2]
[375964420,1753801851738,-460.0,0.00019414,2]
[375964421,1753801851747,-460.0,0.00019414,2]
[375964422,1753801851757,-460.0,0.00019414,2]
[375964423,1753801851767,-460.0,0.00019414,2]
[375964424,1753801851776,-552.85032552,0.00019414,2]
[375964425,1753801851792,-3021.87,0.00019414,2]
[375964426,1753801851802,-460.0,0.00019414,2]
[375964427,1753801851811,-470.56654914,0.00019414,2]
[375964428,1753801851821,-465.60737299,0.00019414,2]
[375964429,1753801851831,-460.0,0.00019414,2]
[375964430,1753801851840,-460.0,0.00019414,2]
[375964431,1753801851850,-460.0,0.00019414,2]
[375964432,1753801851859,-151.0,0.00019414,2]
[375964433,1753801851869,-151.0,0.00019414,2]
[375964434,1753801851879,-460.0,0.00019414,2]
[375964435,1753801851888,-460.0,0.00019414,2]
[375964436,1753801851897,-471.07513265,0.00019414,2]
[375964437,1753801851907,-548.028466,0.00019414,2]
[375964438,1753801851916,-182.86658516,0.00019414,2]
[375964439,1753801851926,-460.0,0.00019414,2]
[375964440,1753801851935,-1061.68,0.00019414,2]
[375964441,1753801851945,-548.028466,0.00019414,2]
[375964442,1753801851955,-814.85,0.00019414,2]
[375964443,1753801851964,-485.45,0.00019414,2]
[375964444,1753801851974,-460.0,0.00019414,2]
[375964445,1753801851984,-520.65,0.00019414,2]
[375964446,1753801851993,-151.0,0.00019414,2]
[375964447,1753801852003,-2741.32,0.00019414,2]
[375964448,1753801852012,-460.0,0.00019414,2]
[375964449,1753801852021,-151.0,0.00019414,2]
[375964450,1753801852032,-460.0,0.00019414,2]
[375964451,1753801852053,-460.0,0.00019414,2]
[375964452,1753801852063,-460.0,0.00019414,2]
[375964454,1753801852073,-565.43,0.00019414,2]
[375964456,1753801852083,-1231.38,0.00019414,2]
[375964458,1753801852093,-460.0,0.00019414,2]
[375964460,1753801852103,-151.0,0.00019414,2]
[375964461,1753801852112,-460.0,0.00019414,2]
[375964463,1753801852122,-1909.24,0.00019414,2]
[375964465,1753801852131,-577.48,0.00019414,2]
[375964467,1753801852140,-460.0,0.00019414,2]
[375964469,1753801852151,-460.0,0.00019414,2]
[375964471,1753801852160,-3553.32,0.00019414,2]
[375964484,1753801852291,-460.0,0.00019414,2]
[375964486,1753801852302,-654.31,0.00019414,2]
[375964488,1753801852311,-460.0,0.00019414,2]
[375964490,1753801852321,-460.0,0.00019414,2]
[375964492,1753801852330,-460.0,0.00019414,2]
[375964494,1753801852339,-977.06,0.00019414,2]
[375964496,1753801852348,-2428.42,0.00019414,2]
[375964498,1753801852357,-460.0,0.00019414,2]
[375964500,1753801852366,-460.0,0.00019414,2]
[375964502,1753801852376,-460.0,0.00019414,2]
[375964504,1753801852387,-767.52,0.00019414,2]
[375964506,1753801852398,-1052.62,0.00019414,2]
[375964508,1753801852407,-460.0,0.00019414,2]
[375964510,1753801852416,-881.66,0.00019414,2]
[375964511,1753801852426,-460.0,0.00019414,2]
[375964513,1753801852436,-460.0,0.00019414,2]
[375964515,1753801852445,-460.0,0.00019414,2]
[375964517,1753801852455,-460.0,0.00019414,2]
[375964519,1753801852464,-819.8,0.00019414,2]
[375964521,1753801852475,-705.57,0.00019414,2]
[375964523,1753801852484,-7947.48,0.00019414,2]
[375964525,1753801852494,-460.0,0.00019414,2]
[375964527,1753801852503,-460.0,0.00019414,2]
[375964529,1753801852512,-537.18467328,0.00019414,2]
[375964531,1753801852522,-460.0,0.00019414,2]
[375964533,1753801852531,-715.32,0.00019414,2]
[375964535,1753801852542,-186.96,0.00019414,2]
[375964536,1753801852551,-541.38,0.00019414,2]
[375964538,1753801852561,-460.0,0.00019414,2]
[375964541,1753801852572,-151.0,0.00019414,2]
[375964542,1753801852581,-2027.5,0.00019414,2]
[375964544,1753801852591,-2995.42,0.00019414,2]
[375964546,1753801852600,-1657.37,0.00019414,2]
[375964548,1753801852609,-460.0,0.00019414,2]
[375964550,1753801852618,-872.15,0.00019414,2]
[375964553,1753801852627,-2995.59,0.00019414,2]
[375964554,1753801852636,-345.84376464,0.00019414,2]
[375964557,1753801852646,-551.01,0.00019414,2]
[375964558,1753801852655,-460.0,0.00019414,2]
[375964561,1753801852665,-2165.41,0.00019414,2]
[375964563,1753801852675,-747.4,0.00019414,2]
[375964565,1753801852684,-460.0,0.00019414,2]
[375964567,1753801852693,-937.32308871,0.00019414,2]
[375964569,1753801852702,-151.0,0.00019415,2]
[375964570,1753801852712,-151.0,0.00019415,2]
[375964573,1753801852721,-151.0,0.00019415,2]
[375964575,1753801852731,-151.0,0.00019416,2]
[375964577,1753801852741,-151.0,0.00019416,2]
[375964579,1753801852750,-151.0,0.00019416,2]
[375964581,1753801852759,-369.078666,0.00019416,2]
[375964583,1753801852768,-151.0,0.00019416,2]
[375964585,1753801852777,-369.078666,0.00019416,2]
[375964587,1753801852789,-265.046953,0.00019416,2]
[375964589,1753801852798,-265.046953,0.00019416,2]
[375964590,1753801852807,-151.0,0.00019416,2]
[375964592,1753801852816,-151.0,0.00019416,2]
[375964595,1753801852826,-151.0,0.00019416,2]
[375964597,1753801852835,-151.0,0.00019416,2]
[375964598,1753801852843,-460.0,0.00019416,2]
[375964600,1753801852853,-182.166354,0.00019416,2]
[375964602,1753801852862,-182.166354,0.00019416,2]
[375964604,1753801852871,-151.0,0.00019416,2]
[375964606,1753801852880,-1833.60362468,0.00019417,2]
[375964608,1753801852889,-430.1392862,0.00019425,2]
[375964610,1753801852898,-500.0,0.00019426,2]
[375964612,1753801852908,-1585.4549598,0.00019426,2]
[375964614,1753801852917,-1585.4549598,0.00019426,2]
[375964616,1753801852926,-450.97138585,0.00019426,2]
[375964618,1753801852935,-1585.4549598,0.00019426,2]
[375964620,1753801852946,-500.0,0.00019426,2]
[375964622,1753801852955,-1585.4549598,0.00019426,2]
[375964624,1753801852964,-1585.4549598,0.00019426,2]
[375964626,1753801852974,-1585.4549598,0.00019426,2]
[375964628,1753801852983,-1585.4549598,0.00019426,2]
[375964630,1753801852992,-1585.4549598,0.00019426,2]
[375964632,1753801853001,-1585.4549598,0.00019426,2]
[375964634,1753801853010,-1585.4549598,0.00019426,2]
[375964636,1753801853019,-160.0,0.00019426,2]
[375964638,1753801853029,-160.0,0.00019426,2]